bitfinex/quotes_ETHUSD_20220118
["timestamp","ask_amount","ask_price","bid_price","bid_amount"]
[1642515048854,5.49953,3128.4,3128.3,14.88287463]
[1642515049053,11.44434113,3128.4,3128.3,14.88287463]
[1642515049254,7.08533,3128.4,3128.3,14.88287463]
[1642515049457,2.38533,3128.4,3128.3,14.88287463]
[1642515050065,1.79953,3128.4,3128.3,14.88287463]
[1642515050463,1.0,3128.4,3128.3,14.88287463]
[1642515050662,0.999,3128.4,3128.3,14.88287463]
[1642515051200,0.79928,3128.6,3128.4,1.16584729]
[1642515051397,1.09928,3128.6,3128.4,1.16173473]
[1642515051596,1.09928,3128.6,3128.3,14.88287463]
[1642515051796,0.03990479,3128.5,3128.3,14.88287463]
[1642515051996,1.09928,3128.6,3128.3,14.88287463]
[1642515052197,0.05797173,3128.5,3128.3,14.88287463]
[1642515052797,0.79928,3128.6,3128.4,0.03167357]
[1642515052998,0.00113684,3128.8,3128.4,0.03167357]
[1642515053397,0.00170527,3128.7,3128.4,0.03167357]
[1642515053798,0.02058327,3128.5,3128.3,20.67694141]
[1642515053997,0.00113685,3128.6,3128.3,20.67694141]
[1642515054201,0.00926825,3128.7,3128.3,20.67694141]
[1642515054402,3.23893139,3128.8,3128.3,19.55107463]
[1642515054603,0.00113685,3128.6,3128.3,14.88287463]
[1642515054808,1.00170527,3128.7,3128.3,14.88287463]
[1642515055052,1.12950527,3128.7,3128.3,14.88287463]
[1642515055257,0.00113685,3128.6,3128.3,14.88287463]
[1642515055653,2.46041898,3128.5,3128.3,14.88287463]
[1642515055951,6.3165685,3128.4,3128.3,14.88287463]
[1642515056157,5.95,3128.3,3128.2,14.67017172]
[1642515056355,0.9568,3128.1,3127.4,4.7625]
[1642515056552,0.9568,3127.9,3127.1,0.1278]
[1642515056755,0.9568,3127.5,3127.1,0.1278]
[1642515056953,0.9568,3127.5,3127.4,0.00568424]
[1642515057154,2.9568,3127.5,3127.4,0.00568424]
[1642515057354,1.9568,3127.5,3127.4,0.00568424]
[1642515057553,0.9568,3127.5,3127.4,0.00568424]
[1642515057759,1.9568,3127.5,3127.4,0.00568424]
[1642515057955,2.9568,3127.5,3127.4,0.00568424]
[1642515058802,3.7565163,3127.5,3127.4,0.00568424]
[1642515059599,6.48367139,3127.5,3127.4,0.00568424]
[1642515059799,3.7565163,3127.5,3126.8,5.9741197]
[1642515060203,2.7565163,3127.5,3126.8,5.9741197]
[1642515060411,1.2568,3127.4,3126.8,5.9741197]
[1642515060605,2.3847,3127.4,3126.8,5.9741197]
[1642515060904,1.9568,3127.4,3126.8,5.9741197]
[1642515061904,4.68414182,3127.4,3126.8,5.9741197]
[1642515062104,7.92150378,3127.4,3126.8,5.9741197]
[1642515062844,4.68414182,3127.4,3127.1,2.34055037]
[1642515063746,4.68414182,3127.4,3126.8,4.5562]
[1642515063945,7.92644942,3127.4,3126.8,4.5562]
[1642515064946,4.68414182,3127.4,3126.8,4.5562]
[1642515067702,8.73626183,3127.4,3126.8,4.5562]
[1642515068303,13.48076471,3127.4,3126.8,4.5562]
[1642515068504,13.48076471,3127.4,3127.3,29.04923845]
[1642515068505,13.93876471,3127.4,3127.3,29.04923845]
[1642515068705,9.8866447,3127.4,3127.3,26.88212312]
[1642515068904,9.8866447,3127.4,3127.3,17.88212312]
[1642515069105,9.8866447,3127.4,3127.3,11.48272312]
[1642515069306,10.0145447,3127.4,3127.3,11.48272312]
[1642515069706,10.0145447,3127.4,3127.3,5.08320312]
[1642515070151,3.64399144,3126.9,3126.8,4.5562]
[1642515070350,2.2147,3127.0,3126.9,0.20670978]
[1642515070551,2.5147,3127.0,3126.9,0.20670978]
[1642515070755,2.5147,3127.0,3126.8,3.62478631]
[1642515070756,5.1,3126.9,3126.8,3.62478631]
[1642515070952,12.02997255,3126.9,3126.8,0.00341054]
[1642515071252,12.02997255,3126.9,3126.6,0.00454738]
[1642515071253,7.57044043,3126.9,3126.6,0.00454738]
[1642515071452,8.37036313,3126.9,3126.6,0.00454738]
[1642515072151,8.67036313,3126.9,3126.6,0.00454738]
[1642515072352,2.72734182,3126.8,3126.6,0.00454738]
[1642515072554,4.758,3126.7,3126.6,0.00454738]
[1642515072852,5.55795,3126.7,3126.6,0.00454738]
[1642515073052,10.09173728,3126.7,3126.6,0.00454738]
[1642515073452,5.55795,3126.7,3126.6,0.00454738]
[1642515073697,2.4,3126.6,3126.5,0.59135528]
[1642515073998,0.00790536,3126.6,3125.8,1.15587487]
[1642515074198,0.00790536,3126.6,3126.2,2.09531798]
[1642515074498,0.00790536,3126.6,3125.8,1.15587487]
[1642515075003,2.73631081,3126.6,3125.8,1.15587487]
[1642515075201,2.73631081,3126.6,3125.7,4.2009]
[1642515075402,4.47451659,3126.5,3125.7,4.2009]
[1642515075603,7.04801077,3126.5,3126.4,11.18827184]
[1642515075808,5.06041659,3126.5,3126.4,11.18940869]
[1642515076203,0.5859,3126.5,3126.4,11.18940869]
[1642515076403,5.056848,3126.5,3126.4,11.18940869]
[1642515076602,6.013648,3126.5,3126.4,11.18940869]
[1642515077468,1.5427,3126.5,3126.4,11.18940869]
[1642515077657,1.4148,3126.5,3126.4,11.18940869]
[1642515078057,1.4148,3126.5,3126.4,10.18940869]
[1642515078659,0.9568,3126.6,3126.4,10.18940869]
[1642515078862,2.72868224,3126.5,3126.4,10.18940869]
[1642515079159,4.92765189,3126.5,3126.4,10.20187244]
[1642515079558,4.92765189,3126.5,3126.4,11.00150244]
[1642515079559,0.9568,3126.5,3126.4,11.00150244]
[1642515079758,0.9568,3126.5,3126.4,12.45617152]
[1642515081068,4.03500356,3126.7,3126.5,6.0]
[1642515081319,2.25160356,3126.7,3126.6,4.58392108]
[1642515081914,2.25160356,3126.7,3126.5,2.3985945]
[1642515082114,2.25160356,3126.7,3126.5,6.90512065]
[1642515082314,2.25160356,3126.7,3126.5,8.50411065]
[1642515082514,2.25160356,3126.7,3126.6,4.43634979]
[1642515082915,2.25160356,3126.7,3126.5,8.49673683]
[1642515083514,2.25160356,3126.7,3126.5,3.9975845]
[1642515084116,2.25160356,3126.7,3126.6,4.44426914]
[1642515084515,2.25160356,3126.7,3126.6,4.74426914]
[1642515084717,2.25160356,3126.7,3126.5,8.44090349]
[1642515084962,2.25160356,3126.7,3126.5,3.9975845]
[1642515085755,2.25160356,3126.7,3126.5,2.3985945]
[1642515086358,2.25160356,3126.7,3126.5,3.1981245]
[1642515087954,2.72807219,3126.8,3126.5,3.1981245]
[1642515088157,12.16073975,3128.1,3126.7,6.0]
[1642515088158,0.1279,3127.6,3126.7,6.0]
[1642515088357,12.16073975,3128.1,3126.7,6.03256817]
[1642515088358,12.28863975,3128.1,3126.7,6.03256817]
[1642515088555,12.16073975,3128.1,3126.9,0.79931]
[1642515088804,12.16073975,3128.1,3127.0,0.758]
[1642515089008,12.16073975,3128.1,3127.1,0.458]
[1642515089405,12.16073975,3128.1,3127.2,1.43996352]
[1642515089607,12.16073975,3128.1,3127.3,2.24304911]
[1642515089806,0.1278,3127.9,3127.3,2.91452201]
[1642515090008,12.16073975,3128.1,3127.3,2.91452201]
[1642515090209,12.16073975,3128.1,3127.3,2.90260001]
[1642515090409,12.16073975,3128.1,3127.3,4.50112001]
[1642515090811,12.15654224,3128.1,3127.4,6.0]
[1642515091012,12.15654224,3128.1,3127.5,20.12277501]
[1642515091210,0.0073895,3127.9,3127.6,0.92687]
[1642515091410,0.0073895,3127.9,3127.7,0.758]
[1642515091615,12.15654224,3128.1,3127.8,6.0]
[1642515091812,12.15654224,3128.1,3128.0,9.05109667]
[1642515092112,12.15767909,3128.1,3128.0,3.35109667]
[1642515092551,12.15767909,3128.1,3128.0,5.95109667]
[1642515093151,12.15767909,3128.1,3128.0,7.80109667]
[1642515093152,10.22709583,3128.1,3128.0,7.80109667]
[1642515093352,10.22709583,3128.1,3128.0,8.25909667]
[1642515093552,10.22709583,3128.1,3128.0,27.04909667]
[1642515093754,4.09210828,3128.3,3128.1,6.0]
[1642515093953,4.09210828,3128.3,3128.2,6.458]
[1642515094161,1.54547383,3128.5,3128.2,6.5858]
[1642515094356,6.81971651,3129.0,3128.5,0.6672667]
[1642515094559,6.81971651,3129.0,3128.6,8.99669302]
[1642515095356,6.81971651,3129.0,3128.6,3.49669302]
[1642515095557,6.81971651,3129.0,3128.6,5.74669302]
[1642515096397,6.81971651,3129.0,3128.6,4.94783302]
[1642515096801,5.625486,3128.7,3128.6,5.17042448]
[1642515097198,5.55393809,3128.7,3128.6,5.17042448]
[1642515097800,5.55393809,3128.7,3128.6,0.68059146]
[1642515098001,5.55393809,3128.7,3128.6,0.22259146]
[1642515098398,5.68173809,3128.7,3128.6,0.22259146]
[1642515100653,5.55393809,3128.7,3128.6,0.22259146]
[1642515101455,5.55393809,3128.7,3128.6,3.07259146]
[1642515101757,5.55393809,3128.7,3128.6,2.86094588]
[1642515101758,5.45614437,3128.7,3128.6,2.86094588]
[1642515102555,5.45614437,3128.7,3128.6,6.31094588]
[1642515102757,6.82101362,3128.8,3128.7,3.6]
[1642515102958,6.82101362,3128.8,3128.7,3.9]
[1642515103160,6.82499258,3128.8,3128.7,3.9]
[1642515103556,6.82499258,3128.8,3128.6,3.31894588]
[1642515103557,6.82499258,3128.8,3128.6,0.458]
[1642515104001,0.00341054,3128.7,3128.6,0.458]
[1642515104201,0.00341054,3128.7,3128.6,2.49285184]
[1642515105206,0.00341054,3128.7,3128.6,3.09285184]
[1642515106006,0.00341054,3128.7,3128.6,1.058]
[1642515106407,0.00341054,3128.7,3128.6,0.1278]
[1642515106808,0.00341054,3128.7,3128.6,0.16244067]
[1642515107008,0.13121054,3128.7,3128.6,0.16244067]
[1642515107546,0.00341054,3128.7,3128.6,0.16244067]
[1642515107749,0.13121054,3128.7,3128.6,0.03464067]
[1642515108047,4.55003688,3128.7,3128.6,0.03464067]
[1642515108247,0.13121054,3128.7,3128.6,0.03464067]
[1642515108446,3.88121054,3128.7,3128.6,0.03464067]
[1642515108647,0.13121054,3128.7,3128.6,0.03464067]
[1642515109448,2.83121054,3128.7,3128.6,0.03464067]
[1642515110052,0.13121054,3128.7,3128.6,0.03464067]
[1642515111402,0.00341054,3128.7,3128.6,0.03464067]
[1642515111701,0.00341054,3128.7,3128.6,2.33825134]
[1642515112101,0.00341054,3128.7,3128.6,0.01969475]
[1642515112505,0.00341054,3128.7,3128.2,0.40240247]
[1642515112901,0.00284212,3128.6,3128.2,0.40240247]
[1642515113302,0.00227369,3128.5,3128.3,0.84468795]
[1642515113500,0.00227369,3128.5,3128.4,1.88293366]
[1642515113703,6.82101362,3128.8,3128.5,0.799]
[1642515114102,0.00341054,3128.7,3128.5,0.799]
[1642515114402,0.00284212,3128.6,3128.5,0.799]
[1642515116759,0.00284212,3128.6,3128.5,8.22181615]
[1642515116958,6.82101362,3128.8,3128.5,8.22181615]
[1642515116959,6.82101362,3128.8,3128.6,7.59754]
[1642515117157,6.82101362,3128.8,3128.7,19.248]
[1642515117458,6.82215046,3128.8,3128.7,19.548]
[1642515118257,6.82215046,3128.8,3128.7,20.37961363]
[1642515118457,0.43275046,3128.8,3128.7,20.37961363]
[1642515118700,6.81971651,3129.0,3128.9,4.6]
[1642515118901,6.81971651,3129.0,3128.9,5.358]
[1642515119101,6.82085336,3129.0,3128.9,5.358]
[1642515120209,6.82085336,3129.0,3128.9,24.148]
[1642515120406,3.36880353,3129.5,3129.0,0.79864]
[1642515120608,3.24100353,3129.5,3129.1,0.79867]
[1642515120814,0.00113685,3129.2,3129.1,0.92647]
[1642515121008,0.00113685,3129.2,3129.1,1.09867]
[1642515121406,0.00113685,3129.2,3129.1,0.3]
[1642515121806,0.00113685,3129.2,3129.0,0.4278]
[1642515122648,0.00113685,3129.2,3129.0,0.1278]
[1642515122954,0.1278,3129.1,3129.0,0.1278]
[1642515123249,0.1278,3129.1,3128.9,2.08690584]
[1642515123449,0.12893685,3129.2,3128.9,2.08690584]
[1642515124651,0.00113685,3129.2,3128.9,2.08690584]
[1642515125355,0.00113685,3129.2,3128.9,0.48958584]
[1642515125657,0.01257069,3129.1,3128.9,0.03158584]
[1642515125855,0.14037069,3129.1,3128.9,0.03158584]
[1642515126309,0.1278,3129.1,3128.9,0.03158584]
[1642515126510,0.1278,3129.1,3128.9,8.584e-05]
[1642515126511,6.01290546,3129.0,3128.9,8.584e-05]
[1642515126707,6.01290546,3129.0,3128.1,1.0]
[1642515126708,0.06726952,3128.8,3128.1,1.0]
[1642515126908,1.45560485,3128.5,3128.1,1.0]
[1642515127108,0.1278,3128.4,3128.2,0.00454739]
[1642515127408,0.1278,3128.6,3128.2,0.00454739]
[1642515127609,0.1278,3128.3,3128.2,0.00454739]
[1642515127808,0.1278,3128.9,3128.1,0.79911]
[1642515128212,0.1278,3128.9,3128.3,0.799]
[1642515128409,0.1278,3128.9,3128.4,0.6391732]
[1642515128609,0.1278,3128.9,3128.4,0.64258374]
[1642515128809,0.1278,3128.9,3128.5,0.00284212]
[1642515129611,0.00113685,3129.2,3128.5,24.10269131]
[1642515129814,0.00113685,3129.2,3128.6,0.46779373]
[1642515130058,0.00113685,3129.2,3128.7,5.12331552]
[1642515130260,0.00113685,3129.2,3128.7,5.71082079]
[1642515130458,0.00113685,3129.2,3128.8,2.18348019]
[1642515130659,0.00773041,3129.1,3128.8,2.18348019]
[1642515130862,0.00113685,3129.2,3128.8,2.31128019]
[1642515131062,0.00113685,3129.2,3128.8,5.34672319]
[1642515131261,0.00113685,3129.2,3128.9,0.3]
[1642515131562,0.02621068,3129.1,3128.9,0.31619815]
[1642515132063,0.00113685,3129.2,3128.9,1.61386815]
[1642515132861,0.00896109,3129.1,3128.9,0.01619815]
[1642515133063,0.00113685,3129.2,3128.9,0.01619815]
[1642515133904,0.00931777,3129.1,3128.9,0.01619815]
[1642515134104,0.1278,3129.1,3128.9,0.01619815]
[1642515134505,0.14400838,3129.1,3128.9,0.01619815]
[1642515134808,0.1278,3129.1,3128.9,0.01619815]
[1642515136609,0.1278,3129.1,3129.0,0.01035903]
[1642515139452,2.00393954,3129.1,3129.0,0.01035903]
[1642515140558,6.0,3128.9,3128.0,0.1278]
[1642515140759,6.0,3128.9,3127.5,1.1278]
[1642515140760,0.20484483,3128.8,3127.5,1.1278]
[1642515140957,0.20484483,3128.8,3128.1,0.00397896]
[1642515140958,1.20484483,3128.8,3128.1,0.00397896]
[1642515141212,5.73488111,3128.8,3128.1,0.00397896]
[1642515141410,1.53057043,3128.7,3128.1,0.00397896]
[1642515141609,0.7993836,3128.5,3127.3,0.00852635]
[1642515141811,0.43422579,3128.4,3127.3,0.00852635]
[1642515142013,0.4278,3128.4,3127.3,0.00852635]
[1642515142211,1.0,3128.2,3127.3,0.00852635]
[1642515142412,0.14049934,3128.1,3127.0,0.01023162]
[1642515142612,0.79948,3128.0,3127.0,0.01023162]
[1642515142814,1.47639542,3127.7,3127.0,2.31703489]
[1642515143215,1.47639542,3127.7,3127.1,0.0096632]
[1642515143415,0.1279,3127.6,3127.1,0.0096632]
[1642515144613,1.47639542,3127.7,3127.1,0.0096632]
[1642515145564,1.47639542,3127.7,3127.2,0.04979826]
[1642515145765,1.47639542,3127.7,3127.1,0.0096632]
[1642515146665,1.47639542,3127.7,3127.3,0.00334983]
[1642515146867,1.47639542,3127.7,3127.4,0.0452701]
[1642515147067,1.47639542,3127.7,3127.4,0.05322803]
[1642515147366,1.47639542,3127.7,3127.5,0.0073895]
[1642515147568,0.79942,3128.2,3127.6,0.03708701]
[1642515147767,0.1278,3128.3,3127.4,0.00795793]
[1642515147968,0.1278,3128.4,3127.7,0.00625266]
[1642515148169,4.69901898,3128.5,3127.3,0.00334983]
[1642515148170,0.1278,3128.5,3127.4,0.00795793]
[1642515148569,1.49698318,3128.3,3127.4,0.00795793]
[1642515148804,1.93237549,3128.6,3127.4,0.00795793]
[1642515149007,0.1278,3128.4,3127.4,0.00795793]
[1642515149204,1.2442,3128.8,3127.5,0.1278]
[1642515149403,1.2442,3128.8,3127.8,0.79921]
[1642515149605,0.00113685,3129.0,3127.9,5.89338946]
[1642515149804,0.00113685,3129.0,3127.9,24.67637843]
[1642515150004,0.00113685,3129.0,3128.0,0.00454739]
[1642515150204,0.00113685,3129.0,3128.4,2.06151267]
[1642515150405,0.00113685,3129.0,3128.5,0.79899]
[1642515150607,0.00113685,3129.0,3128.5,0.80069527]
[1642515150809,0.00113685,3129.0,3128.6,0.00113684]
[1642515151609,0.00113685,3129.0,3128.7,0.02153378]
[1642515151805,0.00113685,3129.0,3128.7,0.82052378]
[1642515152205,0.00113685,3129.0,3128.7,1.61951378]
[1642515152456,0.00113685,3129.0,3128.7,1.59798]
[1642515152651,0.00113685,3129.0,3128.8,0.01334804]
[1642515153050,0.00113685,3129.0,3128.7,1.59798]
[1642515153252,0.06796424,3128.9,3128.7,0.79899]
[1642515153552,0.06796424,3128.9,3128.6,0.00413449]
[1642515154157,1.18206653,3128.8,3128.6,0.00413449]
[1642515154453,5.58855378,3128.7,3128.6,0.00413449]
[1642515154655,6.71635378,3128.7,3128.6,0.00413449]
[1642515154852,1.1278,3128.7,3128.6,0.00413449]
[1642515155057,1.18206653,3128.8,3128.6,0.00413449]
[1642515155255,2.18206653,3128.8,3128.6,0.00413449]
[1642515155457,1.18206653,3128.8,3128.6,0.00413449]
[1642515155858,1.18206653,3128.8,3128.6,0.01343157]
[1642515156058,1.18206653,3128.8,3128.6,0.00413449]
[1642515156708,1.19184841,3128.8,3128.7,0.00423539]
[1642515156903,5.71526183,3128.8,3128.7,0.00423539]
[1642515157108,6.71526183,3128.8,3128.7,0.00423539]
[1642515157305,7.01526183,3128.8,3128.7,0.00423539]
[1642515157805,7.01526183,3128.8,3127.6,3.7893]
[1642515157806,0.09395866,3128.6,3127.3,0.79934]
[1642515158005,0.09395866,3128.6,3127.7,0.79925]
[1642515158006,4.91995809,3128.6,3127.7,0.79925]
[1642515158206,0.1278,3128.5,3127.7,0.79925]
[1642515158807,1.44259758,3128.3,3127.8,0.03032173]
[1642515159007,1.44259758,3128.3,3127.7,0.79925]
[1642515159211,1.44259758,3128.3,3127.9,0.00397897]
[1642515159508,0.1278,3128.5,3127.8,0.00454739]
[1642515159710,0.1278,3128.5,3127.9,0.69919]
[1642515159964,1.0,3128.7,3127.9,0.69919]
[1642515159965,0.1278,3128.7,3127.9,0.69919]
[1642515160159,0.1278,3128.7,3128.0,0.00341055]
[1642515160559,0.00651741,3128.6,3128.0,0.00341055]
[1642515160759,0.1278,3128.5,3127.9,0.00397897]
[1642515160959,0.01432246,3128.4,3127.5,0.00625266]
[1642515161162,0.79932,3128.6,3127.3,3.20432951]
[1642515161363,1.5986219,3128.6,3127.4,0.79927]
[1642515161563,1.49511095,3128.5,3127.7,0.79916]
[1642515161765,1.49511095,3128.5,3128.2,0.00220731]
[1642515162161,0.1278,3128.7,3128.3,0.00170528]
[1642515162363,0.00113685,3128.8,3128.3,0.00170528]
[1642515162562,0.00113685,3128.8,3128.4,0.79909]
[1642515163361,1.13150942,3128.8,3128.4,0.79909]
[1642515163805,1.13150942,3128.8,3128.3,0.00170528]
[1642515164005,0.03571615,3128.7,3128.3,0.00170528]
[1642515164604,1.03571615,3128.7,3128.3,0.00170528]
[1642515164804,1.0,3128.7,3128.3,0.00170528]
[1642515165209,1.1278,3128.7,3128.3,0.00170528]
[1642515165409,0.1278,3128.7,3128.3,0.00170528]
[1642515166511,0.01160946,3128.6,3128.3,0.00170528]
[1642515166710,11.36404574,3128.6,3128.5,0.00591696]
[1642515166914,7.2502,3128.6,3128.5,0.00591696]
[1642515167110,0.7994227,3128.2,3127.2,3.8989]
[1642515167311,2.09941875,3127.4,3126.8,3.0448]
[1642515167557,2.09941875,3127.4,3127.3,0.00568423]
[1642515167855,2.09941875,3127.4,3126.9,0.79948]
[1642515167856,2.09941875,3127.4,3127.0,0.0073895]
[1642515168855,2.09941875,3127.4,3126.8,0.00852635]
[1642515169255,1.14044861,3127.3,3126.8,0.00852635]
[1642515169658,2.14044861,3127.3,3126.8,0.00852635]
[1642515169858,1.14044861,3127.3,3126.8,0.00852635]
[1642515170063,2.14044861,3127.3,3126.8,0.00852635]
[1642515170862,2.14044861,3127.3,3126.9,0.05661651]
[1642515171061,1.14044861,3127.3,3126.9,0.05661651]
[1642515171305,0.1279,3127.5,3127.0,0.0073895]
[1642515171505,1.1279,3127.7,3127.1,0.03352722]
[1642515171704,1.1279,3127.7,3127.0,0.01236771]
[1642515171906,1.0,3127.9,3127.2,0.00625265]
[1642515172110,0.1278,3127.8,3127.1,0.00682108]
[1642515172507,1.1278,3128.0,3127.3,2.29778327]
[1642515172709,0.1278,3128.2,3127.3,2.29778327]
[1642515172907,0.1278,3128.4,3127.4,0.85533794]
[1642515173207,0.00113685,3128.5,3127.5,3.77434738]
[1642515173408,0.1278,3128.4,3127.5,3.77434738]
[1642515173606,0.00113685,3128.5,3127.6,0.00397896]
[1642515173808,0.00113685,3128.5,3127.8,0.79916]
[1642515174207,0.00113685,3128.5,3127.9,0.00227369]
[1642515174810,0.00113685,3128.5,3127.9,0.80143369]
[1642515175260,0.00113685,3128.5,3128.0,0.00170527]
[1642515175863,0.06536667,3128.4,3128.0,0.00170527]
[1642515176062,0.06536667,3128.4,3127.5,3.7698]
[1642515176063,0.06536667,3128.4,3127.8,0.00284211]
[1642515176360,0.00113685,3128.5,3127.6,0.00397896]
[1642515176361,0.1278,3128.3,3127.6,0.00397896]
[1642515176564,0.1278,3128.4,3127.6,0.00397896]
[1642515176762,0.1278,3128.4,3128.2,0.00197967]
[1642515177063,6.37608477,3128.3,3128.2,0.00197967]
[1642515177267,12.72367158,3128.3,3128.2,0.00197967]
[1642515177463,13.72367158,3128.3,3128.2,0.00197967]
[1642515177661,14.72367158,3128.3,3128.2,0.00197967]
[1642515178265,6.09585866,3128.2,3127.6,0.00397896]
[1642515178464,8.39292396,3128.1,3127.6,0.00397896]
[1642515178719,8.39292396,3128.1,3126.5,3.68373162]
[1642515178720,1.5993315,3127.7,3126.5,3.68373162]
[1642515178920,1.5993315,3127.7,3126.6,0.00966319]
[1642515178921,5.84030626,3127.6,3126.6,0.00966319]
[1642515179220,1.0,3127.5,3126.6,0.00966319]
[1642515179420,1.93045285,3126.9,3126.6,0.00966319]
[1642515180024,1.93045285,3126.9,3126.5,0.01023162]
[1642515180426,4.78360742,3126.8,3126.5,0.01023162]
[1642515180628,1.92773,3126.7,3126.5,0.01023162]
[1642515180828,6.07943182,3126.6,3126.5,0.01023162]
[1642515181028,2.79816862,3126.6,3126.5,0.01023162]
[1642515181225,7.33753876,3126.6,3126.5,0.01023162]
[1642515181428,2.79816862,3126.6,3126.5,0.01023162]
[1642515181627,7.27606862,3126.6,3126.5,0.01023162]
[1642515181926,7.27606862,3126.6,3125.7,0.01477901]
[1642515181927,0.79997,3126.3,3125.7,0.01477901]
[1642515182128,1.09997,3126.3,3125.7,0.01477901]
[1642515182560,1.45032802,3125.8,3125.7,0.01477901]
[1642515183158,1.45032802,3125.8,3125.4,0.01648428]
[1642515183558,1.45032802,3125.8,3125.2,0.01762112]
[1642515183959,1.45032802,3125.8,3125.4,0.79989]
[1642515184367,1.83684246,3125.9,3125.5,0.01591585]
[1642515184566,1.0,3126.2,3125.5,0.01591585]
[1642515184762,3.6506,3126.6,3125.5,1.91554585]
[1642515184964,1.0,3126.5,3125.5,1.91554585]
[1642515185165,0.9,3126.5,3125.8,0.79968]
[1642515185564,2.12161897,3126.4,3125.9,0.01364216]
[1642515185765,0.1279,3126.8,3125.9,1.61307216]
[1642515185967,0.1279,3127.0,3125.9,1.61307216]
[1642515186205,4.49034644,3127.2,3126.0,0.01307373]
[1642515186409,0.1279,3127.2,3126.0,0.01307373]
[1642515186608,2.7936,3128.6,3126.2,0.79961]
[1642515186609,0.1279,3127.3,3126.2,0.79961]
[1642515186806,1.38859178,3127.3,3126.3,0.3]
[1642515187006,1.38859178,3127.3,3126.5,0.79953]
[1642515187208,1.38859178,3127.3,3126.5,2.3986]
[1642515187209,3.40014539,3127.3,3126.5,2.3986]
[1642515187406,3.40014539,3127.3,3126.6,0.00966319]
[1642515187610,3.40014539,3127.3,3126.6,0.80920319]
[1642515187806,1.0,3127.2,3126.6,0.80920319]
[1642515188007,1.0,3127.2,3126.7,0.00909477]
[1642515188306,2.01155361,3127.3,3126.7,0.00909477]
[1642515188907,0.1279,3127.6,3126.8,1.59901]
[1642515189110,0.1279,3127.8,3126.9,0.08299508]
[1642515189307,4.65793628,3128.2,3127.0,0.7994]
[1642515189508,4.65793628,3128.2,3127.1,0.3]
[1642515189709,0.1279,3128.2,3127.1,0.30682108]
[1642515189961,0.1279,3128.2,3127.2,0.00625265]
[1642515190163,3.16773689,3128.0,3127.2,0.00625265]
[1642515190357,0.1278,3127.9,3126.9,0.30795792]
[1642515190557,0.1278,3127.9,3127.0,0.0073895]
[1642515190956,0.1278,3127.9,3126.9,0.00795792]
[1642515190957,1.1278,3127.9,3126.9,0.00795792]
[1642515191159,1.1278,3127.9,3127.0,0.0073895]
[1642515191357,1.1278,3127.9,3126.9,1.90672792]
[1642515191558,1.4278,3127.9,3127.2,1.5988]
[1642515191757,1.2721088,3127.4,3127.2,1.5988]
[1642515193710,1.2721088,3127.4,3127.0,0.01443177]
[1642515194111,1.0,3127.5,3127.1,0.00682108]
[1642515194714,0.1279,3127.8,3127.1,0.00682108]
[1642515194913,0.1279,3127.6,3127.2,1.59881]
[1642515195114,0.1278,3127.8,3127.2,1.59881]
[1642515195317,1.44583219,3127.8,3127.2,1.59881]
[1642515196816,0.1278,3127.8,3127.3,0.00701344]
[1642515197016,0.1278,3127.8,3127.4,0.79944]
[1642515197217,1.0,3128.1,3127.5,0.00321284]
[1642515197218,1.92726,3128.1,3127.5,0.00321284]
[1642515197479,0.1278,3128.1,3127.5,0.00454738]
[1642515197674,0.1278,3128.2,3127.6,0.00397896]
[1642515197875,0.1278,3128.7,3127.7,0.79937]
[1642515198070,0.00170528,3128.6,3127.6,0.00397896]
[1642515198270,0.00170528,3128.6,3127.5,3.9979]
[1642515198271,0.00170528,3128.6,3127.8,0.00284211]
[1642515198469,0.00113685,3128.5,3127.6,0.00397896]
[1642515198669,0.00113685,3128.5,3128.0,1.59838]
[1642515198869,0.0022737,3128.7,3128.0,1.59838]
[1642515199070,0.0022737,3128.7,3128.1,0.80032684]
[1642515199469,0.8015837,3128.7,3128.1,0.80032684]
[1642515199669,1.34756729,3128.4,3128.1,0.80032684]
[1642515200274,0.03337781,3128.3,3128.1,0.00113684]
[1642515200478,1.34756729,3128.4,3128.1,0.00113684]
[1642515201515,0.15915637,3128.3,3128.1,0.00113684]
[1642515201716,0.15915637,3128.3,3128.2,0.00727292]
[1642515201917,0.1278,3128.3,3128.2,0.00727292]
[1642515203123,1.0,3128.6,3128.2,0.00727292]
[1642515203124,0.1278,3128.6,3128.2,0.00727292]
[1642515203321,0.0022737,3128.7,3128.2,0.00727292]
[1642515203521,0.00113685,3128.5,3128.2,0.00727292]
[1642515203921,0.0022737,3128.7,3128.2,0.00727292]
[1642515204121,0.13814134,3128.6,3128.2,0.00727292]
[1642515204322,0.1278,3128.6,3128.2,0.00727292]
[1642515204521,0.00113685,3128.5,3128.3,0.79925]
[1642515204957,0.1300737,3128.7,3128.3,0.79925]
[1642515205160,0.0022737,3128.7,3128.3,0.79925]
[1642515205363,0.0022737,3128.7,3128.4,0.0328658]
[1642515205565,0.0022737,3128.7,3128.5,0.79911]
[1642515205960,0.0022737,3128.7,3128.6,2.16719792]
[1642515209214,0.0022737,3128.7,3128.6,4.86719792]
[1642515209816,1.18974152,3130.1,3128.7,6.0]
[1642515209817,4.65783628,3129.9,3128.7,6.0]
[1642515210019,0.1278,3129.7,3128.8,0.79896]
[1642515210317,0.00511581,3129.6,3128.8,0.79896]
[1642515210716,0.00454739,3129.5,3128.8,0.79896]
[1642515210923,0.00454739,3129.5,3128.8,1.59791]
[1642515211117,0.00397896,3129.4,3128.8,1.59791]
[1642515211318,0.00397896,3129.4,3128.9,0.0339088]
[1642515211519,0.00341054,3129.3,3129.0,0.00277978]
[1642515211719,0.00341054,3129.3,3129.0,0.80172978]
[1642515211919,4.11450924,3130.0,3129.1,6.81595866]
[1642515211920,0.00284212,3129.2,3129.1,6.81595866]
[1642515212119,0.00284212,3129.2,3129.1,8.07245]
[1642515212318,7.42,3130.0,3129.2,4.9]
[1642515212560,0.1278,3130.5,3129.3,1.59748]
[1642515212859,0.1278,3130.5,3129.9,2.54283514]
[1642515212860,0.13121054,3130.5,3129.9,2.54283514]
[1642515213061,0.00341054,3130.5,3130.0,0.79873]
[1642515213961,0.00341054,3130.5,3130.2,0.79866]
[1642515214161,0.1277,3130.4,3130.2,1.59732]
[1642515214562,0.00227369,3130.3,3130.2,1.59732]
[1642515215569,0.00227369,3130.3,3130.2,0.79866]
[1642515215867,2.04673707,3130.1,3129.5,1.74357038]
[1642515218724,13.53196853,3129.2,3129.1,0.00454739]
[1642515218919,13.53196853,3129.2,3128.8,0.00625266]
[1642515219120,5.17545132,3128.9,3128.8,0.00625266]
[1642515219420,8.02895347,3128.9,3128.8,0.00625266]
[1642515219618,5.15115347,3128.9,3128.8,0.00625266]